fUST/lending_fUST_20250127
["ID","MTS","AMOUNT","RATE_DAILY","PERIOD"]
[350559852,1737963043161,-5771.641563,0.000213,2]
[350559855,1737963043171,-503.53012252,0.00021369,2]
[350559859,1737963043182,-151.0,0.00021381,6]
[350559864,1737963043192,-394.647,0.0002146,2]
[350559867,1737963043204,-7044.0,0.000216,4]
[350559871,1737963043214,-800.8,0.000216,30]
[350559876,1737963043224,-166.64879221,0.00021653,2]
[350559880,1737963043234,-151.0,0.00021818,7]
[350559883,1737963043245,-4845.28166249,0.00021898,61]
[350559886,1737963043255,-537.0,0.00021977,2]
[350559892,1737963043267,-2048.0,0.00021977,2]
[350559895,1737963043278,-2304.0,0.00021977,2]
[350559897,1737963043290,-395.0,0.00021977,2]
[350559900,1737963043300,-1000.0,0.00022,22]
[350559901,1737963043312,-151.0,0.00022254,7]
[350559903,1737963043323,-1200.0,0.00022281,2]
[350559905,1737963043334,-106745.28491113,0.000223,7]
[350559907,1737963043352,-152.34,0.000224,31]
[350559909,1737963043364,-152.34,0.000224,31]
[350559911,1737963043375,-152.34,0.000224,31]
[350559913,1737963043387,-152.34,0.000224,31]
[350559915,1737963043398,-152.34,0.000224,31]
[350559917,1737963043413,-152.34,0.000224,31]
[350559919,1737963043425,-152.34,0.000224,31]
[350559921,1737963043435,-166.64879221,0.00022495,2]
[350559923,1737963043446,-32815.00576675,0.000225,3]
[350559925,1737963043457,-151.0,0.000225,7]
[350559927,1737963043468,-151.0,0.000225,7]
[350559929,1737963043479,-192.518241,0.000225,7]
[350559931,1737963043489,-192.518241,0.000225,7]
[350559933,1737963043499,-151.0,0.000225,7]
[350559935,1737963043509,-151.0,0.000225,7]
[350559937,1737963043518,-160.0,0.000225,3]
[350559939,1737963043528,-500.0,0.00022573,2]
[350559941,1737963043538,-503.47042957,0.00022573,2]
[350559943,1737963043547,-500.0,0.00022573,2]
[350559945,1737963043557,-159.304207,0.00022578,7]
[350559946,1737963043567,-187.960461,0.00022578,7]
[350559947,1737963043577,-300.01792006,0.00022588,14]
[350559949,1737963043592,-500.0,0.00022588,14]
[350559951,1737963043602,-150.11,0.00022588,14]
[350559953,1737963043613,-500.0,0.00022588,14]
[350559955,1737963043623,-150.11,0.00022588,14]
[350559957,1737963043633,-500.0,0.00022588,14]
[350559959,1737963043643,-150.82630234,0.00022588,14]
[350559961,1737963043653,-664.0,0.00022588,3]
[350559963,1737963043663,-500.0,0.00022588,14]
[350559965,1737963043674,-904.99006749,0.00022588,14]
[350559967,1737963043684,-150.11,0.00022588,2]
[350559969,1737963043694,-234.392947,0.00022592,7]
[350559970,1737963043704,-47.66770815,0.00022592,7]
[350559974,1737963043739,-186.72523885,0.00022592,7]
[350559976,1737963043749,-234.392947,0.00022592,7]
[350559978,1737963043759,-234.392947,0.00022592,7]
[350559980,1737963043770,-234.392947,0.00022592,7]
[350559982,1737963043780,-234.392947,0.00022592,7]
[350559984,1737963043789,-234.392947,0.00022592,7]
[350559985,1737963043799,-234.392947,0.00022592,7]
[350559987,1737963043809,-200.51707921,0.00022592,7]
[350559990,1737963043822,-33.87586779,0.00022592,7]
[350559991,1737963043832,-234.392947,0.00022592,7]
[350559993,1737963043847,-234.392947,0.00022592,7]
[350559995,1737963043857,-61.64521545,0.00022592,7]
[350559997,1737963043869,-172.74773155,0.00022592,7]
[350559999,1737963043879,-234.392947,0.00022592,7]
[350560001,1737963043888,-234.392947,0.00022592,7]
[350560003,1737963043898,-234.392947,0.00022592,7]
[350560005,1737963043908,-234.392947,0.00022592,7]
[350560007,1737963043919,-234.392947,0.00022592,7]
[350560009,1737963043929,-234.392947,0.00022592,7]
[350560011,1737963043939,-234.392939,0.00022592,7]
[350560013,1737963043949,-190.803302,0.00022595,7]
[350560015,1737963043960,-151.0,0.00022595,7]
[350560017,1737963043970,-151.0,0.00022595,7]
[350560019,1737963043980,-151.0,0.00022595,7]
[350560021,1737963043989,-151.0,0.00022595,7]
[350560022,1737963043998,-151.0,0.00022595,7]
[350560024,1737963044008,-151.0,0.00022595,7]
[350560027,1737963044018,-151.0,0.00022595,7]
[350560028,1737963044028,-151.0,0.00022595,7]
[350560030,1737963044038,-151.0,0.00022595,7]
[350560032,1737963044048,-151.0,0.00022595,7]
[350560034,1737963044057,-151.0,0.00022595,7]
[350560036,1737963044067,-151.0,0.00022595,7]
[350560038,1737963044077,-151.0,0.00022595,7]
[350560040,1737963044087,-151.0,0.00022595,7]
[350560042,1737963044101,-210.178429,0.00022595,7]
[350560044,1737963044111,-151.0,0.00022595,7]
[350560046,1737963044121,-151.0,0.00022595,7]
[350560048,1737963044130,-151.0,0.00022595,7]
[350560050,1737963044140,-151.0,0.00022595,7]
[350560052,1737963044150,-151.0,0.00022595,7]
[350560054,1737963044160,-151.0,0.00022595,7]
[350560056,1737963044169,-151.0,0.00022595,7]
[350560058,1737963044178,-151.0,0.00022595,7]
[350560060,1737963044187,-151.0,0.00022595,7]
[350560062,1737963044196,-151.0,0.00022595,7]
[350560064,1737963044206,-6.70123611,0.00022595,7]
[350560072,1737963044277,-144.29876389,0.00022595,7]
[350560074,1737963044287,-298.488398,0.00022595,7]
[350560076,1737963044297,-4466.46283811,0.00022595,5]
[350560080,1737963044321,-3161.52720817,0.00022595,5]
[350560082,1737963044333,-456.65,0.00022595,5]
[350560084,1737963044350,-2750.0,0.00022595,5]
[350560087,1737963044363,-782.20562861,0.00022595,5]
[350560089,1737963044376,-37468.80582778,0.00022595,5]
[350560091,1737963044386,-2017.25483307,0.00022595,5]
[350560093,1737963044396,-72285.83813915,0.00022595,61]
[350560095,1737963044409,-61178.6802726,0.00022595,61]
[350560097,1737963044421,-1473.0,0.00022595,61]
[350560102,1737963044454,-310.69999999,0.00022595,61]
[350560104,1737963044466,-491.7775,0.00022595,61]
[350560106,1737963044478,-82723.50083577,0.00022595,61]
[350560423,1737963047483,-574.5,0.00016993,2]
[350560427,1737963047493,-500.0,0.00017129,2]
[350560430,1737963047504,-505.56682642,0.00017266,2]
[350560435,1737963047513,-5790.73613011,0.00022595,61]
[350560439,1737963047525,-20074.77674337,0.00022595,61]
[350560443,1737963047539,-7417.09916612,0.00022595,61]
[350560447,1737963047550,-29910.57428818,0.00022595,61]
[350560475,1737963048398,-4449.28135284,0.00022595,61]
[350560476,1737963048470,-15662.31305407,0.00022595,61]
[350560477,1737963048483,-485.93824471,0.00022595,61]
[350560503,1737963049541,-26640.00136,0.00022595,61]
[350560504,1737963049553,-39060.000882,0.00022595,61]
[350560505,1737963049567,-50432.00000111,0.00022595,61]
[350560506,1737963049579,-2954.04,0.00022595,61]
[350560507,1737963049591,-270.0,0.00022595,61]
[350560508,1737963049608,-10546.843583,0.00022595,61]
[350560509,1737963049619,-77945.66118525,0.00022595,61]
[350560510,1737963049645,-5600.0,0.00022595,61]
[350560514,1737963049657,-297.0,0.00022595,61]
[350560515,1737963049668,-9850.0,0.00022595,61]
[350560529,1737963049973,-1517.5,0.00022595,61]
[350560530,1737963049984,-98499.99999998,0.00022595,61]
[350560531,1737963050082,-1857.5760012,0.00022595,61]
[350560532,1737963050098,-791.671979,0.00022595,61]
[350560533,1737963050112,-1080.0,0.00022595,61]
[350560534,1737963050128,-2800.0,0.00022595,61]
[350560535,1737963050144,-22058.00000065,0.00022595,61]
[350560582,1737963176619,232.215873,0.00013973,2]
[350560592,1737963820760,1385.14035511,0.00015101,2]
[350560593,1737963831486,1875.08976777,0.00015101,2]
[350560598,1737964027965,7225.0,0.00023001,120]
[350560599,1737964053371,-219.32428561,0.00015136,2]
[350560600,1737964127878,228.766456,0.00013973,2]
[350560602,1737964143621,7989.58,0.00018,30]
[350560603,1737964146135,-47.55525639,0.00015136,2]
[350560604,1737964146158,-2813.0,0.00015192,5]
[350560605,1737964146182,-250.0,0.00015192,2]
[350560606,1737964146208,-369.0927659,0.00015728,2]
[350560607,1737964146236,-484.50283334,0.00015738,2]
[350560608,1737964146259,-300.0,0.00016049,2]
[350560609,1737964146284,-845.39348508,0.0001605,2]
[350560610,1737964148201,-24054.60651492,0.0001605,2]
[350560611,1737964148222,-205.4601355,0.00016204,2]
[350560612,1737964148242,-164.9399918,0.00016338,2]
[350560613,1737964148262,-192.80349967,0.00016338,2]
[350560614,1737964148283,-388.22412401,0.00016438,2]
[350560615,1737964148309,-520.62423874,0.00016438,2]
[350560616,1737964148332,-500.0,0.00016438,2]
[350560617,1737964148353,-500.0,0.00016438,2]
[350560618,1737964148379,-500.0,0.00016438,2]
[350560619,1737964148401,-500.0,0.00016438,2]
[350560620,1737964148423,-1000.0,0.00016438,7]
[350560621,1737964148443,-294.26476209,0.00016438,2]
[350560622,1737964148466,-500.0,0.00016438,2]
[350560623,1737964148489,-500.0,0.00016438,2]
[350560624,1737964148513,-500.0,0.00016438,2]
[350560625,1737964148535,-500.0,0.00016438,2]
[350560626,1737964148555,-500.0,0.00016438,2]
[350560627,1737964148575,-500.0,0.00016438,2]
[350560628,1737964148596,-500.0,0.00016438,2]
[350560629,1737964148616,-500.0,0.00016438,2]
[350560630,1737964148635,-500.0,0.00016438,2]
[350560631,1737964148657,-500.0,0.00016438,2]
[350560632,1737964148678,-500.0,0.00016438,2]
[350560633,1737964148702,-500.0,0.00016438,2]
[350560634,1737964148724,-516.39285094,0.00016438,2]
[350560635,1737964148744,-459.75132677,0.00016438,2]
[350560636,1737964148765,-500.0,0.00016438,2]
[350560637,1737964148785,-500.0,0.00016438,2]
[350560638,1737964148806,-511.67654682,0.00016438,2]
[350560639,1737964148829,-500.0,0.00016438,2]
[350560640,1737964148848,-500.0,0.00016438,2]
[350560641,1737964148869,-500.0,0.00016438,2]
[350560642,1737964148889,-485.7116678,0.00016438,2]
[350560643,1737964148909,-500.0,0.00016438,2]
[350560644,1737964148929,-500.0,0.00016438,2]
[350560645,1737964148949,-500.0,0.00016438,2]
[350560646,1737964148973,-500.0,0.00016438,2]
[350560647,1737964148993,-507.3475828,0.00016438,2]
[350560648,1737964149015,-500.0,0.00016438,2]
[350560649,1737964149037,-500.0,0.00016438,2]
[350560650,1737964149058,-500.0,0.00016438,2]
[350560651,1737964149079,-500.0,0.00016438,2]
[350560652,1737964149101,-500.0,0.00016438,2]
[350560653,1737964149122,-500.0,0.00016438,2]
[350560654,1737964149143,-500.0,0.00016438,2]
[350560655,1737964149163,-500.0,0.00016438,2]
[350560656,1737964149185,-500.0,0.00016438,2]
[350560657,1737964149206,-500.0,0.00016438,2]
[350560658,1737964149231,-500.0,0.00016438,2]
[350560659,1737964149253,-500.0,0.00016438,2]
[350560660,1737964149275,-500.0,0.00016438,2]
[350560661,1737964149298,-200.0,0.00016438,2]
[350560662,1737964149319,-505.45759644,0.00016438,2]
[350560663,1737964149340,-500.0,0.00016438,2]
[350560664,1737964149361,-500.0,0.00016438,2]
[350560665,1737964149385,-143.60478324,0.00016438,2]
[350560666,1737964155196,-356.39521676,0.00016438,2]
[350560667,1737964155218,-500.0,0.00016438,2]
[350560668,1737964155239,-500.0,0.00016438,2]
[350560669,1737964155259,-502.99514355,0.00016438,2]
[350560670,1737964155281,-500.88408949,0.00016438,2]
[350560671,1737964155307,-500.0,0.00016438,2]
[350560672,1737964155330,-500.0,0.00016438,2]
[350560673,1737964155354,-500.0,0.00016438,2]
[350560674,1737964155375,-500.0,0.00016438,2]
[350560675,1737964155398,-500.0,0.00016438,2]
[350560676,1737964155421,-500.0,0.00016438,2]
[350560677,1737964155442,-500.0,0.00016438,2]
[350560678,1737964155469,-500.0,0.00016438,2]
[350560679,1737964155492,-500.0,0.00016438,2]
[350560680,1737964155513,-500.0,0.00016438,2]
[350560681,1737964155535,-500.0,0.00016438,2]
[350560682,1737964155558,-500.0,0.00016438,2]
[350560683,1737964155578,-223.04094273,0.00016438,2]
[350560684,1737964155600,-500.0,0.00016438,2]
[350560685,1737964155731,-500.0,0.00016438,2]
[350560686,1737964155753,-500.0,0.00016438,2]
[350560687,1737964155774,-200.0,0.00016438,2]
[350560688,1737964155795,-500.0,0.00016575,2]
[350560689,1737964155815,-500.0,0.00016575,2]
[350560690,1737964155838,-500.0,0.00016575,2]
[350560691,1737964155858,-500.0,0.00016575,2]
[350560692,1737964155878,-620.16167714,0.00016575,7]
[350560693,1737964155899,-500.0,0.00016575,2]
[350560694,1737964155921,-500.0,0.00016575,2]
[350560695,1737964155943,-500.0,0.00016575,2]
[350560696,1737964155966,-500.0,0.00016575,2]
[350560697,1737964155986,-500.0,0.00016575,2]
[350560698,1737964156008,-500.0,0.00016575,2]
[350560699,1737964156028,-500.0,0.00016575,2]
[350560700,1737964156048,-383.21407098,0.00016575,2]
[350560701,1737964156069,-500.0,0.00016575,2]
[350560702,1737964156091,-387.94281789,0.00016575,2]
[350560703,1737964156112,-500.0,0.00016575,2]
[350560704,1737964156134,-500.0,0.00016575,2]
[350560705,1737964156157,-500.0,0.00016575,2]
[350560706,1737964156178,-500.0,0.00016575,2]
[350560707,1737964156198,-500.0,0.00016575,2]
[350560708,1737964156222,-500.0,0.00016575,2]
[350560709,1737964156244,-500.0,0.00016575,2]
[350560710,1737964156265,-500.0,0.00016575,2]
[350560711,1737964156286,-500.0,0.00016575,2]
[350560712,1737964156310,-500.0,0.00016575,2]
[350560713,1737964156331,-500.0,0.00016575,2]
[350560714,1737964156352,-500.0,0.00016575,2]
[350560715,1737964156373,-500.0,0.00016575,2]
[350560716,1737964156396,-500.0,0.00016575,2]
[350560717,1737964156419,-500.0,0.00016575,2]
[350560718,1737964156439,-500.0,0.00016575,2]
[350560719,1737964156461,-500.0,0.00016575,2]
[350560720,1737964156485,-500.0,0.00016575,2]
[350560721,1737964156507,-500.0,0.00016575,2]
[350560722,1737964156527,-500.0,0.00016575,2]
[350560723,1737964156547,-500.0,0.00016575,2]
[350560724,1737964156567,-500.0,0.00016575,2]
[350560725,1737964156590,-500.0,0.00016575,2]
[350560726,1737964156611,-500.0,0.00016575,2]
[350560727,1737964156632,-500.0,0.00016575,2]
[350560728,1737964156652,-458.9897779,0.00016575,2]
[350560729,1737964156672,-192.80349966,0.00016684,2]
[350560730,1737964156693,-500.0,0.00016712,2]
[350560731,1737964156714,-500.0,0.00016712,2]
[350560732,1737964156736,-500.0,0.00016712,2]
[350560733,1737964156756,-500.0,0.00016712,2]
[350560734,1737964156776,-500.0,0.00016712,2]
[350560735,1737964156797,-500.0,0.00016712,2]
[350560736,1737964156819,-500.0,0.00016712,2]
[350560737,1737964156840,-500.0,0.00016712,2]
[350560738,1737964156861,-633.20414572,0.00016712,2]
[350560739,1737964156882,-500.0,0.00016712,2]
[350560740,1737964156902,-500.0,0.00016712,2]
[350560741,1737964156924,-500.0,0.00016712,2]
[350560742,1737964156947,-500.0,0.00016712,2]
[350560743,1737964156969,-500.0,0.00016712,2]
[350560744,1737964156989,-328.34210211,0.00016712,2]
[350560745,1737964157011,-500.0,0.00016712,2]
[350560746,1737964157033,-500.0,0.00016712,2]
[350560747,1737964157053,-500.0,0.00016712,2]
[350560748,1737964157073,-500.0,0.00016712,2]
[350560749,1737964157094,-500.0,0.00016712,2]
[350560750,1737964157115,-500.0,0.00016712,2]
[350560751,1737964157137,-500.0,0.00016712,2]
[350560752,1737964157159,-500.0,0.00016712,2]
[350560753,1737964157183,-500.0,0.00016712,2]
[350560754,1737964157205,-500.0,0.00016712,2]
[350560755,1737964157227,-500.0,0.00016712,2]
[350560756,1737964157251,-500.0,0.00016712,2]
[350560757,1737964157272,-500.0,0.00016712,2]
[350560758,1737964157295,-500.0,0.00016712,2]
[350560759,1737964157319,-500.0,0.00016712,2]
[350560760,1737964157341,-500.0,0.00016712,2]
[350560761,1737964157362,-500.0,0.00016712,2]
[350560762,1737964157385,-500.0,0.00016848,2]
[350560763,1737964157406,-352.5,0.00016848,2]
[350560764,1737964157428,-500.0,0.00016848,2]
[350560765,1737964157450,-467.46934037,0.00016848,2]
[350560766,1737964157473,-27.06897622,0.00016848,2]
[350560767,1737964157576,-196.64833245,0.00016848,2]
[350560768,1737964157596,-500.0,0.00016848,2]
[350560769,1737964157616,-500.0,0.00016849,2]
[350560770,1737964157638,-500.0,0.00016849,2]
[350560771,1737964157658,-500.0,0.00016849,2]
[350560772,1737964157677,-509.16605168,0.00016849,2]
[350560773,1737964157698,-500.0,0.00016849,2]
[350560774,1737964157722,-500.0,0.00016849,2]
[350560775,1737964157744,-615.23,0.00016849,2]
[350560776,1737964157765,-500.0,0.00016849,2]
[350560777,1737964157786,-571.4,0.00016849,2]
[350560778,1737964157808,-500.0,0.00016849,2]
[350560779,1737964157830,-500.0,0.00016849,2]
[350560780,1737964157852,-500.0,0.00016849,2]
[350560781,1737964157873,-500.0,0.00016849,2]
[350560782,1737964157894,-500.0,0.00016849,2]
[350560783,1737964157913,-500.0,0.00016849,2]
[350560784,1737964157934,-500.0,0.00016849,2]
[350560785,1737964157956,-500.0,0.00016849,2]
[350560786,1737964157980,-500.0,0.00016849,2]
[350560787,1737964158001,-500.0,0.00016849,2]
[350560788,1737964158022,-500.0,0.00016849,2]
[350560789,1737964158044,-500.0,0.00016849,2]
[350560790,1737964158067,-500.0,0.00016849,2]
[350560791,1737964158088,-83.40438114,0.00016849,2]
[350560792,1737964159107,-2531.51,0.00016438,2]
[350560793,1737964159133,-1821.97165904,0.00016575,2]
[350560794,1737964162301,-500.0,0.00016438,2]
[350560795,1737964162342,-500.0,0.00016438,2]
[350560796,1737964162384,-709.53834096,0.00016575,2]
[350560797,1737964162425,-500.0,0.00016575,2]
[350560798,1737964162467,-2531.51,0.00016712,2]
[350560799,1737964162514,-500.0,0.00016712,2]
[350560800,1737964162553,-416.59561886,0.00016849,2]
[350560801,1737964162592,-2531.51,0.00016849,2]
[350560802,1737964162633,-370.98,0.00016849,2]
[350560803,1737964162669,-1200.0,0.00016876,2]
[350560804,1737964162709,-500.0,0.00016986,2]
[350560805,1737964162747,-500.0,0.00016986,2]
[350560806,1737964162784,-500.0,0.00016986,2]
[350560807,1737964162824,-500.0,0.00016986,2]
[350560808,1737964162864,-500.0,0.00016986,2]
[350560809,1737964162901,-500.0,0.00016986,2]
[350560810,1737964162944,-500.0,0.00016986,2]
[350560811,1737964162983,-180.62,0.00016986,2]
[350560812,1737964163026,-500.0,0.00016986,2]
[350560813,1737964163069,-500.0,0.00016986,2]
[350560814,1737964163107,-500.0,0.00016986,2]
[350560815,1737964163147,-500.0,0.00016986,2]
[350560816,1737964163194,-500.0,0.00016986,2]
[350560817,1737964163236,-2531.51,0.00016986,2]
[350560818,1737964163276,-192.80349966,0.00017029,2]
[350560819,1737964163322,-500.0,0.00017122,2]
[350560820,1737964163370,-500.0,0.00017123,2]
[350560821,1737964163411,-500.0,0.00017123,2]
[350560822,1737964163457,-322.31,0.00017123,2]
[350560823,1737964163501,-224.08,0.00017123,2]
[350560824,1737964163541,-500.0,0.00017123,2]
[350560825,1737964163581,-500.0,0.00017123,2]
[350560826,1737964163622,-500.0,0.00017123,2]
[350560827,1737964163660,-500.0,0.00017123,2]
[350560828,1737964163698,-500.0,0.00017123,2]
[350560829,1737964163739,-500.0,0.00017123,2]
[350560830,1737964163781,-2531.51,0.00017123,2]
[350560831,1737964163824,-500.0,0.00017125,2]
[350560832,1737964163867,-247.27885679,0.00017125,2]
[350560833,1737964163909,-173.09519975,0.00017125,2]
[350560834,1737964163950,-393.58097241,0.00017126,2]
[350560835,1737964163989,-500.0,0.00017126,2]
[350560836,1737964164030,-500.0,0.00017126,2]
[350560837,1737964164071,-501.82912499,0.00017126,2]
[350560838,1737964164110,-500.0,0.00017126,2]
[350560839,1737964164149,-500.0,0.00017126,2]
[350560840,1737964164190,-500.0,0.00017126,2]
[350560841,1737964164234,-500.0,0.00017126,2]
[350560842,1737964164277,-500.0,0.00017126,2]
[350560843,1737964164324,-500.0,0.00017126,2]
[350560844,1737964164365,-500.0,0.00017126,2]
[350560845,1737964164408,-500.0,0.00017126,2]
[350560846,1737964164448,-500.0,0.00017126,2]
[350560847,1737964164488,-500.0,0.00017126,2]
[350560848,1737964164527,-500.0,0.00017126,2]
[350560849,1737964164568,-500.0,0.00017126,2]
[350560850,1737964164609,-500.0,0.00017126,2]
[350560851,1737964164657,-500.0,0.00017126,2]
[350560852,1737964164703,-500.0,0.00017126,2]
[350560853,1737964164744,-526.27902022,0.00017126,2]
[350560854,1737964164786,-500.0,0.00017126,2]
[350560855,1737964164824,-500.0,0.00017126,2]
[350560856,1737964164863,-500.0,0.00017126,2]
[350560857,1737964164911,-500.0,0.00017126,2]
[350560858,1737964164952,-500.0,0.00017126,2]
[350560859,1737964164992,-500.0,0.00017126,2]
[350560860,1737964165033,-500.0,0.00017126,2]
[350560861,1737964165074,-500.0,0.00017126,2]
[350560862,1737964165113,-500.0,0.00017126,2]
[350560863,1737964165152,-462.43736489,0.00017126,2]
[350560864,1737964165191,-500.0,0.00017126,2]
[350560865,1737964165233,-500.0,0.00017126,2]
[350560866,1737964165274,-500.0,0.00017126,2]
[350560867,1737964165325,-500.0,0.00017126,2]
[350560868,1737964165370,-500.0,0.00017126,2]
[350560869,1737964165411,-500.0,0.00017126,2]
[350560870,1737964165450,-500.0,0.00017126,2]
[350560871,1737964165491,-500.0,0.00017126,2]
[350560872,1737964165532,-500.0,0.00017126,2]
[350560873,1737964165570,-500.0,0.00017126,2]
[350560874,1737964165607,-500.0,0.00017126,2]
[350560875,1737964165648,-500.0,0.00017126,2]
[350560876,1737964165687,-500.0,0.00017126,2]
[350560877,1737964165724,-500.0,0.00017126,2]
[350560878,1737964165763,-500.0,0.00017126,2]
[350560879,1737964165800,-500.0,0.00017126,2]
[350560880,1737964165840,-500.0,0.00017126,2]
[350560881,1737964165878,-500.0,0.00017126,2]
[350560882,1737964165916,-500.0,0.00017126,2]
[350560883,1737964165955,-500.0,0.00017126,2]
[350560884,1737964165995,-500.0,0.00017126,2]
[350560885,1737964166032,-556.26064698,0.00017126,2]
[350560886,1737964166071,-500.0,0.00017126,2]
[350560887,1737964166110,-500.0,0.00017126,2]
[350560888,1737964166148,-518.08780755,0.00017126,2]
[350560889,1737964166186,-500.0,0.00017126,2]
[350560890,1737964166226,-500.0,0.00017126,2]
[350560891,1737964166264,-500.0,0.00017126,2]
[350560892,1737964166303,-500.0,0.00017126,2]
[350560893,1737964166342,-500.0,0.00017126,2]
[350560894,1737964166381,-500.0,0.00017126,2]
[350560895,1737964166420,-531.66010339,0.00017126,2]
[350560896,1737964166459,-500.0,0.00017126,2]
[350560897,1737964166497,-500.0,0.00017126,2]
[350560898,1737964166536,-500.0,0.00017126,2]
[350560899,1737964166576,-500.0,0.00017126,2]
[350560900,1737964166615,-500.0,0.00017126,2]
[350560901,1737964166654,-500.0,0.00017126,2]
[350560902,1737964166696,-500.0,0.00017126,2]
[350560903,1737964166745,-500.0,0.00017126,2]
[350560904,1737964166790,-500.0,0.00017126,2]
[350560905,1737964166835,-500.0,0.00017126,2]
[350560906,1737964166883,-500.0,0.00017126,2]
[350560907,1737964166936,-500.0,0.00017126,2]
[350560908,1737964166984,-500.0,0.00017126,2]
[350560909,1737964167031,-500.0,0.00017126,2]
[350560910,1737964167169,-500.0,0.00017126,2]
[350560911,1737964167214,-500.89371923,0.00017126,2]
[350560912,1737964167265,-500.0,0.00017126,2]
[350560913,1737964167309,-427.77575011,0.00017126,2]
[350560914,1737964167351,-500.0,0.00017126,2]
[350560915,1737964167394,-500.0,0.00017126,2]
[350560916,1737964167439,-500.0,0.00017126,2]
[350560917,1737964167485,-500.0,0.00017126,2]
[350560918,1737964167534,-500.0,0.00017126,2]
[350560919,1737964167576,-500.0,0.00017126,2]
[350560920,1737964167617,-500.0,0.00017126,2]
[350560921,1737964167655,-500.0,0.00017126,2]
[350560922,1737964167695,-500.0,0.00017126,2]
[350560923,1737964167737,-500.0,0.00017126,2]
[350560924,1737964167776,-500.0,0.00017126,2]
[350560925,1737964167816,-500.0,0.00017126,2]
[350560926,1737964167859,-429.62,0.00017126,2]
[350560927,1737964167898,-500.0,0.00017126,2]
[350560928,1737964167939,-500.0,0.00017126,2]
[350560929,1737964167985,-500.0,0.00017126,2]
[350560930,1737964168026,-500.0,0.00017126,2]
[350560931,1737964168066,-500.0,0.00017126,2]
[350560932,1737964168117,-500.0,0.00017126,2]
[350560933,1737964168163,-505.15359567,0.00017126,2]
[350560934,1737964168208,-500.0,0.00017126,2]
[350560935,1737964168254,-500.0,0.00017126,2]
[350560936,1737964168301,-500.0,0.00017126,2]
[350560937,1737964168345,-500.0,0.00017126,2]
[350560938,1737964168393,-873.76,0.00017126,2]
[350560939,1737964168435,-500.0,0.00017126,2]
[350560940,1737964168478,-500.0,0.00017126,2]
[350560941,1737964168523,-500.0,0.00017126,2]
[350560942,1737964168563,-500.0,0.00017126,2]
[350560943,1737964168604,-500.0,0.00017126,2]
[350560944,1737964168645,-500.0,0.00017126,2]
[350560945,1737964168685,-500.0,0.00017126,2]
[350560946,1737964168726,-500.0,0.00017126,2]
[350560947,1737964168770,-500.0,0.00017126,2]
[350560948,1737964168811,-500.0,0.00017126,2]
[350560949,1737964168849,-150.32742474,0.00017126,2]
[350560950,1737964168896,-1277.83,0.00017127,2]
[350560951,1737964168938,-500.0,0.00017127,2]
[350560952,1737964168983,-500.0,0.00017127,2]
[350560953,1737964169027,-500.0,0.00017127,2]
[350560954,1737964169069,-500.0,0.00017128,2]
[350560955,1737964169109,-500.0,0.00017128,2]